fUSD/lending_fUSD_20260226
["ID","MTS","AMOUNT","RATE_DAILY","PERIOD"]
[406720105,1772118648287,-151.0,0.000179,2]
[406720106,1772118648297,-151.0,0.000179,2]
[406720107,1772118648306,-4687.60010129,0.000179,2]
[406720108,1772118648315,-16240.68395677,0.000179,2]
[406720109,1772118648324,-204.31050693,0.000179,2]
[406720110,1772118648333,-1703.73609901,0.000179,2]
[406720111,1772118648342,-2641.30302154,0.000179,2]
[406720112,1772118648352,-294.49398957,0.000179,2]
[406720113,1772118648361,-465.42516495,0.000179,2]
[406720114,1772118648370,-21846.65485425,0.000179,2]
[406720115,1772118648379,-150.0,0.00017912,2]
[406720116,1772118648389,-500.0,0.00017918,2]
[406720117,1772118648398,-151.0,0.0001792,2]
[406720118,1772118648409,-151.0,0.0001792,2]
[406720119,1772118648418,-151.0,0.0001792,2]
[406720120,1772118648427,-529.0,0.00017955,2]
[406720121,1772118648436,-500.0,0.00017955,2]
[406720122,1772118648446,-500.0,0.00017955,2]
[406720123,1772118648455,-500.0,0.00017955,2]
[406720124,1772118648464,-500.0,0.00017955,2]
[406720125,1772118648473,-500.0,0.00017955,2]
[406720126,1772118648482,-500.0,0.00017955,2]
[406720127,1772118648491,-500.0,0.00017955,6]
[406720128,1772118648501,-500.0,0.00017955,7]
[406720129,1772118648510,-500.0,0.00017955,8]
[406720130,1772118648520,-500.0,0.00017955,2]
[406720131,1772118648529,-500.0,0.00017955,2]
[406720132,1772118648538,-500.0,0.00017955,2]
[406720133,1772118648547,-400.0,0.0001797,2]
[406720134,1772118648556,-300.0,0.0001797,2]
[406720135,1772118648566,-400.0,0.0001797,2]
[406720136,1772118648576,-300.0,0.0001797,2]
[406720137,1772118648585,-400.0,0.0001797,2]
[406720138,1772118648595,-400.0,0.0001797,2]
[406720139,1772118648605,-400.0,0.0001797,2]
[406720140,1772118648614,-400.0,0.0001797,2]
[406720141,1772118648623,-500.0,0.00017972,2]
[406720142,1772118648632,-174.26065421,0.00017973,2]
[406720143,1772118648642,-500.0,0.00017973,2]
[406720144,1772118648651,-500.0,0.00017973,2]
[406720145,1772118648662,-343.0,0.00017977,2]
[406720146,1772118648671,-44076.69971207,0.0001798,2]
[406720147,1772118648680,-1070.62307231,0.0001799,2]
[406720148,1772118648689,-502.0,0.00017991,4]
[406720149,1772118648698,-20164.1331278,0.00017992,2]
[406720150,1772118648707,-151.0,0.00017992,2]
[406720151,1772118648717,-181.386797,0.00017992,2]
[406720152,1772118648726,-181.386797,0.00017992,2]
[406720153,1772118648735,-181.386797,0.00017992,2]
[406720154,1772118648744,-181.386797,0.00017992,2]
[406720155,1772118648753,-350.0,0.00017995,5]
[406720156,1772118648762,-151.0,0.00017997,2]
[406720157,1772118648772,-384.80531288,0.00017999,2]
[406720158,1772118648781,-500.0,0.00017999,2]
[406720159,1772118648791,-10987.06003046,0.00017999,2]
[406720160,1772118648800,-500.0,0.00017999,2]
[406720161,1772118648809,-500.0,0.00017999,2]
[406720162,1772118648818,-500.0,0.00017999,2]
[406720163,1772118648827,-500.0,0.00017999,2]
[406720164,1772118648836,-500.0,0.00017999,2]
[406720165,1772118648845,-500.0,0.00017999,2]
[406720166,1772118648855,-500.0,0.00017999,2]
[406720167,1772118648863,-500.0,0.00017999,2]
[406720168,1772118648872,-500.0,0.00017999,2]
[406720169,1772118648882,-500.0,0.00017999,2]
[406720170,1772118648891,-500.0,0.00017999,2]
[406720171,1772118648901,-391.644255,0.00017999,2]
[406720172,1772118648911,-13140.49262267,0.00017999,2]
[406720173,1772118648921,-500.0,0.00017999,9]
[406720174,1772118648930,-500.0,0.00017999,10]
[406720175,1772118648939,-500.0,0.00017999,11]
[406720176,1772118648948,-500.0,0.00017999,12]
[406720177,1772118648957,-500.0,0.00017999,13]
[406720178,1772118648966,-500.0,0.00017999,14]
[406720179,1772118648975,-500.0,0.00017999,15]
[406720180,1772118648984,-500.0,0.00017999,16]
[406720181,1772118648993,-500.0,0.00017999,17]
[406720182,1772118649003,-500.0,0.00017999,18]
[406720183,1772118649013,-500.0,0.00017999,19]
[406720184,1772118649021,-500.0,0.00017999,20]
[406720185,1772118649030,-500.0,0.00017999,21]
[406720186,1772118649039,-500.0,0.00017999,21]
[406720187,1772118649048,-500.0,0.00017999,21]
[406720188,1772118649058,-384.61162915,0.00017999,21]
[406720189,1772118649066,-500.0,0.00017999,2]
[406720190,1772118649076,-500.0,0.00017999,2]
[406720191,1772118649085,-500.0,0.00017999,2]
[406720192,1772118649094,-500.0,0.00017999,2]
[406720193,1772118649103,-150.0,0.00017999,2]
[406720194,1772118649112,-155.07011647,0.00017999,2]
[406720195,1772118649121,-843635.05200092,0.00018,2]
[406720196,1772118649131,-1408027.73854225,0.00018,2]
[406720197,1772118649499,-13153.88880311,0.00018,2]
[406720198,1772118649876,-397.01343672,0.0001,2]
[406720199,1772118649885,-113.78656328,0.0001543,2]
[406720219,1772119262461,-150.0,0.00013,30]
[406720220,1772119264310,-150.0,0.00013,30]
[406720221,1772119265205,-150.0,0.00013,30]
[406720222,1772119266037,-50.0,0.00013,30]
[406720223,1772119266073,-100.0,0.00013,30]
[406720224,1772119267489,-150.0,0.00013,30]
[406720225,1772119268697,-150.0,0.00013,30]
[406720226,1772119269919,-85.0,0.00013,30]
[406720227,1772119380504,-150.0,0.000135,30]
[406720228,1772119382454,-150.0,0.000135,30]
[406720229,1772119383501,-150.0,0.000135,30]
[406720230,1772119384698,-150.0,0.000135,30]
[406720231,1772119385829,-150.0,0.000135,30]
[406720260,1772119559855,-150.0,0.000135,30]
[406720261,1772119562160,-100.0,0.000135,30]
[406720377,1772119659433,-187.67,6.8e-05,2]
[406720378,1772119659465,-1200.0,6.8e-05,2]
[406720379,1772119659488,-300.0,6.806e-05,2]
[406720380,1772119659510,-300.0,6.866e-05,2]
[406720381,1772119659533,-300.0,6.866e-05,2]
[406720382,1772119659554,-300.0,6.866e-05,2]
[406720383,1772119659575,-300.0,6.899e-05,2]
[406720384,1772119659598,-2500.0,6.9e-05,2]
[406720385,1772119659619,-3800.0,7e-05,2]
[406720386,1772119659644,-812.33,7.127e-05,2]
[406720387,1772119660830,-10000.0,7.127e-05,2]
[406720388,1772119661204,-10000.0,7.127e-05,2]
[406720389,1772119661669,-10000.0,7.127e-05,2]
[406720390,1772119661998,-10000.0,7.127e-05,2]
[406720391,1772119662412,-10000.0,7.127e-05,2]
[406720392,1772119662881,-10000.0,7.127e-05,2]
[406720393,1772119663287,-10000.0,7.127e-05,2]
[406720394,1772119663661,-10000.0,7.127e-05,2]
[406720395,1772119664080,-10000.0,7.127e-05,2]
[406720396,1772119664459,-10000.0,7.127e-05,2]
[406720397,1772119664948,-10000.0,7.127e-05,2]
[406720398,1772119665328,-10000.0,7.127e-05,2]
[406720399,1772119665711,-10000.0,7.127e-05,2]
[406720400,1772119666129,-10000.0,7.127e-05,2]
[406720401,1772119666546,-10000.0,7.127e-05,2]
[406720402,1772119666962,-10000.0,7.127e-05,2]
[406720403,1772119667400,-10000.0,7.127e-05,2]
[406720404,1772119667848,-10000.0,7.127e-05,2]
[406720405,1772119668263,-10000.0,7.127e-05,2]
[406720406,1772119668613,-10000.0,7.127e-05,2]
[406720407,1772119669022,-10000.0,7.127e-05,2]
[406720408,1772119669764,-10000.0,7.127e-05,2]
[406720409,1772119669958,-10000.0,7.127e-05,2]
[406720410,1772119670401,-10000.0,7.127e-05,2]
[406720411,1772119671710,-10000.0,7.127e-05,2]
[406720412,1772119672625,-10000.0,7.127e-05,2]
[406720413,1772119673458,-10000.0,7.127e-05,2]
[406720414,1772119674484,-10000.0,7.127e-05,2]
[406720415,1772119704392,-10000.0,7.127e-05,2]
[406720421,1772119755311,-151.0,7.124e-05,2]
[406720422,1772119755332,-300.0,7.125e-05,2]
[406720423,1772119755356,-369.48403648,7.126e-05,2]
[406720424,1772119755380,-500.0,7.126e-05,2]
[406720425,1772119755400,-211.44916814,7.126e-05,2]
[406720426,1772119755421,-500.0,7.126e-05,2]
[406720427,1772119755442,-500.0,7.126e-05,2]
[406720428,1772119755464,-511.58282486,7.126e-05,2]
[406720429,1772119755490,-500.0,7.126e-05,2]
[406720430,1772119755513,-500.0,7.126e-05,2]
[406720431,1772119755534,-160.46453532,7.126e-05,2]
[406720432,1772119755562,-500.0,7.126e-05,2]
[406720433,1772119755582,-500.0,7.126e-05,2]
[406720434,1772119755602,-500.0,7.126e-05,2]
[406720435,1772119755622,-325.09882756,7.126e-05,2]
[406720436,1772119755643,-500.0,7.126e-05,2]
[406720437,1772119755670,-500.0,7.126e-05,2]
[406720438,1772119755690,-500.0,7.126e-05,2]
[406720439,1772119755710,-382.55128779,7.126e-05,2]
[406720440,1772119755731,-509.30582309,7.126e-05,2]
[406720441,1772119755760,-500.0,7.126e-05,2]
[406720442,1772119755780,-500.0,7.126e-05,2]
[406720443,1772119755807,-500.0,7.126e-05,2]
[406720444,1772119755834,-79.06349676,7.126e-05,2]
[406720445,1772119774700,-420.93650324,7.126e-05,2]
[406720446,1772119774727,-500.0,7.126e-05,2]
[406720447,1772119774754,-500.0,7.126e-05,2]
[406720448,1772119774780,-500.0,7.126e-05,2]
[406720449,1772119774808,-500.0,7.126e-05,2]
[406720450,1772119774834,-500.0,7.126e-05,2]
[406720451,1772119774860,-500.0,7.126e-05,2]
[406720452,1772119774892,-500.0,7.126e-05,2]
[406720453,1772119774918,-500.0,7.126e-05,2]
[406720454,1772119774944,-500.0,7.126e-05,2]
[406720455,1772119774970,-239.06349676,7.126e-05,2]
[406720456,1772119807903,278.05,7.808e-05,14]
[406720457,1772119823762,-300.0,7.125e-05,2]
[406720458,1772119823782,-300.0,7.125e-05,2]
[406720459,1772119823801,-150.0,7.125e-05,2]
[406720460,1772119823828,-49250.0,7.127e-05,2]
[406720481,1772119832209,-1403.3982886,7.127e-05,2]
[406720483,1772119832221,-670.91,7.127e-05,2]
[406720486,1772119832238,-10189.31893508,7.127e-05,2]
[406720488,1772119832249,-322.59321388,7.127e-05,2]
[406720490,1772119832261,-470.4,7.127e-05,2]
[406720492,1772119832272,-1483.02344022,7.127e-05,2]
[406720493,1772119832287,-17787.09295686,7.127e-05,2]
[406720494,1772119832455,-610696.24285198,7.127e-05,2]
[406720495,1772119832467,-1432.6153019,7.127e-05,2]
[406720496,1772119832479,-260.03248731,7.127e-05,2]
[406720497,1772119832495,-252.17238759,7.127e-05,2]
[406720498,1772119832510,-3406.59746186,7.127e-05,2]
[406720499,1772119832525,-389.09741129,7.127e-05,2]
[406720555,1772119838825,-5850.68998699,7.127e-05,2]
[406720556,1772119838837,-67000.00000002,7.127e-05,2]
[406720557,1772119838853,-333.03666581,7.127e-05,2]
[406720598,1772119840508,-4288.0,7.127e-05,2]
[406720599,1772119840705,-252.95996086,7.127e-05,2]
[406720605,1772119843533,-1177.44162655,7.127e-05,2]
[406720606,1772119844466,-671.3,7.127e-05,2]
[406720607,1772119844478,-32616.8001675,7.127e-05,2]
[406720608,1772119844492,-898983.9468557,7.127e-05,2]
[406720609,1772119844504,-300.0,7.176e-05,2]
[406720610,1772119844514,-250.0,7.176e-05,2]
[406720611,1772119844526,-300.0,7.206e-05,2]
[406720612,1772119844537,-300.0,7.206e-05,2]
[406720613,1772119844546,-300.0,7.206e-05,2]
[406720614,1772119844558,-845.05,7.226e-05,2]
[406720615,1772119844569,-315.20669997,7.838e-05,2]
[406720616,1772119844578,-300.0,7.84e-05,2]
[406720617,1772119844588,-250.0,7.84e-05,2]
[406720619,1772119844598,-200.0,7.991e-05,2]
[406720620,1772119844607,-3921.74,8.219e-05,2]
[406720621,1772119844618,-2903.08,8.219e-05,2]
[406720622,1772119844628,-333.14,8.219e-05,2]
[406720623,1772119844638,-219.0,8.349e-05,2]
[406720624,1772119844648,-870.0,8.406e-05,2]
[406720625,1772119844659,-768.0,8.423e-05,2]
[406720626,1772119844668,-711.0,8.439e-05,2]
[406720627,1772119844678,-878.0,8.456e-05,2]
[406720628,1772119844687,-1596.0,8.473e-05,2]
[406720629,1772119844696,-565.0,8.49e-05,2]
[406720630,1772119844705,-1286.0,8.506e-05,2]
[406720631,1772119844724,-333.14,8.676e-05,2]
[406720632,1772119844736,-500.0,8.74e-05,2]
[406720633,1772119844746,-9999.99,8.864e-05,2]
[406720634,1772119844756,-9999.99,8.864e-05,2]
[406720635,1772119844766,-299.99,8.864e-05,2]
[406720636,1772119844776,-150.99,8.864e-05,2]
[406720637,1772119844786,-381.71,8.864e-05,2]
[406720638,1772119844796,-9773.11,8.969e-05,2]
[406720639,1772119844806,-333.14,9.132e-05,2]
[406720640,1772119844816,-32883.6844,9.23e-05,2]
[406720641,1772119844826,-936.34,9.472e-05,2]
[406720642,1772119844837,-285.3136,9.581e-05,2]
[406720644,1772119844846,-333.14,9.589e-05,2]
[406720646,1772119844856,-162.43895648,9.726e-05,2]
[406720648,1772119844867,-150.0,9.726e-05,2]
[406720649,1772119844876,-150.0,9.781e-05,2]
[406720650,1772119844886,-69461.8304039,9.781e-05,7]
[406720651,1772119844896,-151.0,0.0001,2]
[406720652,1772119844905,-151.0,0.0001,2]
[406720653,1772119844915,-151.0,0.0001,2]
[406720654,1772119844926,-151.0,0.0001,2]
[406720655,1772119844935,-151.0,0.0001,2]
[406720656,1772119844946,-151.0,0.0001,2]
[406720657,1772119844955,-151.0,0.0001,2]
[406720658,1772119844965,-151.0,0.0001,2]
[406720659,1772119844975,-151.0,0.0001,2]
[406720660,1772119844984,-151.0,0.0001,2]
[406720661,1772119844994,-151.0,0.0001,2]
[406720662,1772119845004,-151.0,0.0001,2]
[406720663,1772119845013,-151.0,0.0001,2]
[406720664,1772119845023,-151.0,0.0001,2]
[406720665,1772119845036,-204.31050694,0.0001,2]
[406720666,1772119845046,-151.0,0.0001,2]
[406720667,1772119845056,-151.0,0.0001,2]
[406720668,1772119845066,-151.0,0.0001,2]
[406720669,1772119845076,-151.0,0.0001,2]
[406720670,1772119845086,-151.0,0.0001,2]
[406720671,1772119845095,-151.0,0.0001,2]
[406720672,1772119845105,-151.0,0.0001,2]
[406720673,1772119845115,-151.0,0.0001,2]
[406720674,1772119845125,-151.0,0.0001,2]
[406720675,1772119845134,-151.0,0.0001,2]
[406720676,1772119845144,-151.0,0.0001,2]
[406720677,1772119845155,-151.0,0.0001,2]
[406720678,1772119845165,-151.0,0.0001,2]
[406720679,1772119845175,-151.0,0.0001,2]
[406720680,1772119845184,-151.0,0.0001,2]
[406720681,1772119845194,-151.0,0.0001,2]
[406720682,1772119845204,-151.0,0.0001,2]
[406720683,1772119845215,-151.0,0.0001,2]
[406720684,1772119845224,-151.0,0.0001,2]
[406720685,1772119845234,-151.0,0.0001,2]
[406720686,1772119845244,-151.0,0.0001,2]
[406720687,1772119845254,-151.0,0.0001,2]
[406720688,1772119845263,-151.0,0.0001,2]
[406720689,1772119845276,-1186.11241235,0.0001,2]
[406720690,1772119845286,-1070.62307231,0.0001,2]
[406720691,1772119845296,-500.0,0.0001,2]
[406720692,1772119845306,-333.14,0.00010046,2]
[406720693,1772119845315,-500.0,0.000103,2]
[406720694,1772119845325,-500.0,0.000103,2]
[406720695,1772119845335,-500.0,0.000103,2]
[406720696,1772119845345,-500.0,0.000103,2]
[406720697,1772119845355,-500.0,0.000103,2]
[406720698,1772119845364,-500.0,0.000103,2]
[406720699,1772119845374,-500.0,0.000103,2]
[406720700,1772119845384,-500.0,0.000103,2]
[406720701,1772119845394,-500.0,0.000103,2]
[406720702,1772119845403,-500.0,0.000103,2]
[406720703,1772119845414,-500.0,0.000103,2]
[406720704,1772119845424,-500.0,0.000103,2]
[406720705,1772119845433,-500.0,0.000103,2]
[406720706,1772119845443,-500.0,0.000103,2]
[406720707,1772119845453,-500.0,0.000103,2]
[406720708,1772119845463,-500.0,0.000103,2]
[406720709,1772119845472,-500.0,0.000103,2]
[406720710,1772119845481,-500.0,0.000103,2]
[406720711,1772119845494,-500.0,0.000103,2]
[406720712,1772119845504,-500.0,0.000103,2]
[406720713,1772119845513,-500.0,0.000103,2]
[406720714,1772119845524,-500.0,0.000103,2]
[406720715,1772119845534,-500.0,0.000103,2]
[406720716,1772119845544,-500.0,0.000103,2]
[406720717,1772119845553,-500.0,0.000103,2]
[406720718,1772119845563,-500.0,0.000103,2]
[406720719,1772119845580,-500.0,0.000103,2]
[406720720,1772119845595,-500.0,0.000103,2]
[406720721,1772119845605,-500.0,0.000103,2]
[406720722,1772119845615,-500.0,0.000103,2]
[406720723,1772119845625,-500.0,0.000103,2]
[406720724,1772119845640,-500.0,0.000103,2]
[406720725,1772119845650,-500.0,0.000103,2]
[406720726,1772119845660,-500.0,0.000103,2]
[406720727,1772119845670,-500.0,0.000103,2]
[406720728,1772119845679,-500.0,0.000103,2]
[406720729,1772119845689,-615.83999229,0.000103,2]
[406720730,1772119845698,-500.0,0.000103,2]
[406720731,1772119845708,-500.0,0.000103,2]
[406720732,1772119845717,-500.0,0.000103,2]
[406720734,1772119845727,-500.0,0.000103,2]
[406720736,1772119845736,-500.0,0.000103,2]
[406720737,1772119845747,-500.0,0.000103,2]
[406720738,1772119845756,-500.0,0.000103,2]
[406720740,1772119845766,-500.0,0.000103,2]
[406720741,1772119845777,-500.0,0.000103,2]
[406720742,1772119845786,-500.0,0.000103,2]
[406720743,1772119845797,-700.0,0.000103,2]
[406720744,1772119845806,-500.0,0.000103,2]
[406720745,1772119845816,-500.0,0.000103,2]
[406720746,1772119845825,-700.0,0.000103,2]
[406720747,1772119845835,-500.0,0.000103,2]
[406720748,1772119845844,-2456.0,0.00010388,2]
[406720749,1772119845854,-333.14,0.00010502,2]
[406720750,1772119845864,-1277.0,0.00010572,2]
[406720751,1772119845874,-920.0,0.00010572,2]
[406720752,1772119845884,-1211.0,0.00010572,2]
[406720753,1772119845895,-1340.0,0.00010572,2]
[406720754,1772119845904,-5983.0,0.00010572,2]
[406720755,1772119845914,-936.34,0.00010656,2]
[406720756,1772119845923,-188.75,0.00010708,2]
[406720757,1772119845933,-500.0,0.00010829,2]
[406720758,1772119845942,-15447.06,0.00010959,2]
[406720759,1772119845952,-166.66,0.00010959,2]
[406720760,1772119845962,-333.14,0.00010959,2]
[406720761,1772119845972,-166.66,0.00011068,2]
[406720763,1772119845982,-4687.60010136,0.00011099,2]
[406720765,1772119845991,-4687.60010129,0.00011099,2]
[406720767,1772119846001,-4687.60010129,0.00011099,2]
[406720768,1772119846011,-4687.60010129,0.00011099,2]
[406720770,1772119846020,-16240.68395685,0.00011099,2]
[406720771,1772119846030,-16240.68395677,0.00011099,2]
[406720772,1772119846040,-16240.68395677,0.00011099,2]
[406720773,1772119846049,-16240.68395677,0.00011099,2]
[406720774,1772119846060,-166.66,0.00011178,2]
[406720775,1772119846070,-166.66,0.00011288,2]
[406720776,1772119846080,-1000.0,0.00011377,2]
[406720777,1772119846090,-166.66,0.00011397,2]
[406720778,1772119846101,-333.14,0.00011416,2]
[406720782,1772119846231,-2903.08,0.00011507,2]
[406720783,1772119846241,-166.66,0.00011507,2]
[406720784,1772119846250,-173.95657067,0.00011677,2]
[406720785,1772119846260,-160.0,0.00011684,2]
[406720786,1772119846269,-936.34,0.0001184,2]
[406720787,1772119846278,-333.14,0.00011872,2]
[406720788,1772119846289,-4687.60010129,0.00011887,2]
[406720789,1772119846300,-1500.0,0.00011924,2]
[406720790,1772119846310,-333.14,0.00012329,2]
[406720791,1772119846321,-616.02225,0.00012454,2]
[406720792,1772119846330,-2000.0,0.00012472,2]
[406720793,1772119846339,-204.31050693,0.0001264,2]
[406720794,1772119846349,-500.0,0.0001289,2]
[406720795,1772119846358,-500.0,0.0001289,2]
[406720796,1772119846368,-500.0,0.0001289,2]
[406720797,1772119846377,-500.0,0.0001289,2]
[406720798,1772119846386,-500.0,0.0001289,2]
[406720799,1772119846396,-500.0,0.0001289,2]
[406720800,1772119846405,-500.0,0.0001289,2]
[406720801,1772119846414,-500.0,0.0001289,2]
[406720802,1772119846424,-500.0,0.0001289,2]
[406720803,1772119846433,-500.0,0.0001289,2]
[406720804,1772119846443,-150.25022043,0.0001289,2]
[406720805,1772119846452,-502.38608045,0.0001289,2]
[406720806,1772119846462,-500.0,0.0001289,2]
[406720807,1772119846471,-500.0,0.0001289,2]
[406720808,1772119846480,-500.0,0.0001289,2]
[406720809,1772119846490,-500.0,0.0001289,2]
[406720810,1772119846501,-500.0,0.0001289,2]
[406720811,1772119846511,-500.0,0.0001289,2]
[406720812,1772119846520,-670.0,0.0001289,2]
[406720813,1772119846529,-500.0,0.0001289,2]
[406720814,1772119846539,-500.0,0.0001289,2]
[406720815,1772119846550,-500.0,0.0001289,2]
[406720816,1772119846559,-500.0,0.0001289,2]
[406720817,1772119846568,-500.0,0.0001289,2]
[406720818,1772119846580,-500.0,0.0001289,2]
[406720819,1772119846589,-500.0,0.0001289,2]
[406720820,1772119846598,-500.0,0.0001289,2]
[406720821,1772119846608,-500.0,0.0001289,2]
[406720822,1772119846618,-500.0,0.0001289,2]
[406720823,1772119846628,-500.0,0.0001289,2]
[406720824,1772119846637,-500.0,0.0001289,2]
[406720825,1772119846647,-500.0,0.0001289,2]
[406720826,1772119846656,-500.0,0.0001289,2]
[406720827,1772119846666,-504.90043007,0.0001289,2]
[406720829,1772119846675,-500.0,0.0001289,2]
[406720830,1772119846685,-226.12454466,0.0001289,2]
[406720831,1772119846694,-500.0,0.0001289,2]
[406720832,1772119846704,-173.7910009,0.0001289,2]
[406720833,1772119846714,-500.0,0.0001289,2]
[406720834,1772119846724,-500.76827377,0.0001289,2]
[406720835,1772119846733,-500.0,0.0001289,2]
[406720836,1772119846743,-500.0,0.0001289,2]
[406720837,1772119846752,-500.0,0.0001289,2]
[406720838,1772119846762,-500.0,0.0001289,2]
[406720839,1772119846772,-500.0,0.0001289,2]
[406720840,1772119846782,-500.0,0.0001289,2]
[406720841,1772119846791,-500.0,0.0001289,2]
[406720842,1772119846801,-500.0,0.0001289,2]
[406720843,1772119846810,-500.0,0.0001289,2]
[406720844,1772119846820,-500.0,0.0001289,2]
[406720845,1772119846830,-500.0,0.0001289,2]
[406720846,1772119846839,-500.0,0.0001289,2]
[406720847,1772119846850,-500.0,0.0001289,2]
[406720848,1772119846859,-500.0,0.0001289,2]
[406720849,1772119846868,-500.0,0.0001289,2]
[406720850,1772119846878,-500.0,0.0001289,2]
[406720851,1772119846887,-500.0,0.0001289,2]
[406720852,1772119846896,-500.0,0.0001289,2]
[406720853,1772119846907,-500.0,0.0001289,2]
[406720854,1772119846916,-500.0,0.0001289,2]
[406720855,1772119846927,-500.0,0.0001289,2]
[406720857,1772119846937,-500.0,0.0001289,2]
[406720859,1772119846947,-500.0,0.0001289,2]
[406720860,1772119846957,-500.0,0.0001289,2]
[406720861,1772119846966,-500.0,0.0001289,2]
[406720862,1772119846975,-500.0,0.0001289,2]
[406720863,1772119846984,-500.0,0.0001289,2]
[406720864,1772119846994,-500.0,0.0001289,2]
[406720865,1772119847003,-500.0,0.0001289,2]
[406720866,1772119847013,-500.0,0.0001289,2]
[406720867,1772119847023,-500.0,0.0001289,2]
[406720868,1772119847032,-500.0,0.0001289,2]
[406720869,1772119847041,-500.0,0.0001289,2]
[406720870,1772119847050,-500.0,0.0001289,2]
[406720871,1772119847059,-152.0758102,0.0001289,2]
[406720872,1772119847067,-626.24566997,0.0001289,2]
[406720873,1772119847076,-500.0,0.0001289,2]
[406720874,1772119847096,-500.0,0.0001289,2]
[406720875,1772119847106,-500.0,0.0001289,2]
[406720876,1772119847115,-500.0,0.0001289,2]
[406720877,1772119847124,-500.0,0.0001289,2]
[406720878,1772119847137,-2500.0,0.0001302,2]
[406720879,1772119847146,-936.34,0.00013024,2]
[406720880,1772119847155,-4687.60010129,0.00013089,2]
[406720881,1772119847164,-2456.0,0.00013388,2]
[406720882,1772119847173,-3000.0,0.00013568,2]
[406720883,1772119847182,-1277.0,0.00013572,2]
[406720884,1772119847192,-920.0,0.00013572,2]
[406720885,1772119847201,-1211.0,0.00013572,2]
[406720886,1772119847211,-1340.0,0.00013572,2]
[406720887,1772119847219,-5983.0,0.00013572,2]
[406720888,1772119847228,-500.0,0.00013698,2]
[406720889,1772119847237,-500.0,0.00013698,2]
[406720890,1772119847246,-500.0,0.00013698,2]
[406720891,1772119847255,-500.0,0.00013698,2]
[406720892,1772119847263,-500.0,0.00013698,2]
[406720893,1772119847272,-500.0,0.00013698,2]
[406720894,1772119847281,-500.0,0.00013698,2]
[406720895,1772119847291,-500.0,0.00013698,2]
[406720896,1772119847299,-500.0,0.00013698,2]
[406720897,1772119847308,-500.0,0.00013698,2]
[406720898,1772119847317,-500.0,0.00013698,2]
[406720899,1772119847327,-500.0,0.00013698,2]
[406720900,1772119847336,-500.0,0.00013698,2]
[406720901,1772119847345,-500.0,0.00013698,2]
[406720902,1772119847354,-500.0,0.00013698,2]
[406720903,1772119847363,-500.0,0.00013698,2]
[406720904,1772119847372,-384.80531288,0.00013698,2]
[406720905,1772119847381,-500.0,0.00013698,2]
[406720906,1772119847390,-500.0,0.00013698,2]
[406720907,1772119847399,-500.0,0.00013698,2]
[406720908,1772119847408,-500.0,0.00013698,2]
[406720909,1772119847417,-500.0,0.00013698,2]
[406720910,1772119847427,-500.0,0.00013698,2]
[406720911,1772119847436,-500.0,0.00013698,2]
[406720912,1772119847445,-500.0,0.00013698,2]
[406720913,1772119847454,-500.0,0.00013698,2]
[406720914,1772119847463,-500.0,0.00013698,2]